fUST/lending_fUST_20250915
["ID","MTS","AMOUNT","RATE_DAILY","PERIOD"]
[385554647,1757893003634,221.03296754,0.000199,2]
[385554648,1757893010934,24900.0,0.00023288,30]
[385554651,1757893113821,367.0,0.00027397,120]
[385554667,1757893669355,1500.0,0.00027397,120]
[385554668,1757893690063,1404.39,0.00027397,120]
[385554715,1757893832545,-169.95145636,0.00020634,2]
[385554717,1757893832554,-169.95145636,0.00021804,2]
[385554719,1757893832564,-168.3888056,0.00021904,2]
[385554721,1757893832573,-1200.0,0.00021915,2]
[385554723,1757893832582,-1200.0,0.00021916,2]
[385554725,1757893832592,-300.0,0.00021916,2]
[385554727,1757893832602,-480.0,0.00021917,2]
[385554729,1757893832611,-480.0,0.00021917,2]
[385554731,1757893832621,-480.0,0.00021917,2]
[385554733,1757893832630,-480.0,0.00021917,2]
[385554735,1757893832639,-480.0,0.00021917,2]
[385554737,1757893832648,-480.0,0.00021917,2]
[385554739,1757893832658,-480.0,0.00021917,2]
[385554741,1757893832667,-480.0,0.00021917,2]
[385554743,1757893832677,-480.0,0.00021917,2]
[385554745,1757893832686,-1300.33,0.00021917,2]
[385554747,1757893832695,-481.73,0.00021917,2]
[385554749,1757893832704,-480.0,0.00021917,2]
[385554751,1757893832713,-500.0,0.00021917,2]
[385554753,1757893832722,-480.0,0.00021917,2]
[385554755,1757893832731,-480.0,0.00021917,2]
[385554757,1757893832740,-480.0,0.00021917,2]
[385554759,1757893832749,-480.0,0.00021917,2]
[385554761,1757893832758,-480.0,0.00021917,2]
[385554762,1757893832767,-480.0,0.00021917,2]
[385554764,1757893832775,-480.0,0.00021917,2]
[385554766,1757893832784,-684.7,0.00021917,2]
[385554768,1757893832793,-1145.7,0.00021917,2]
[385554770,1757893832802,-480.0,0.00021917,2]
[385554772,1757893832811,-480.0,0.00021917,2]
[385554774,1757893832820,-480.0,0.00021917,2]
[385554776,1757893832829,-837.62,0.00021917,2]
[385554778,1757893832839,-731.77,0.00021917,2]
[385554780,1757893832849,-480.0,0.00021917,2]
[385554782,1757893832858,-480.0,0.00021917,2]
[385554784,1757893832868,-480.0,0.00021917,2]
[385554786,1757893832877,-480.0,0.00021917,2]
[385554788,1757893832887,-541.8,0.00021917,2]
[385554789,1757893832896,-480.0,0.00021917,2]
[385554790,1757893832905,-4164.88,0.00021917,2]
[385554791,1757893832914,-480.0,0.00021917,2]
[385554792,1757893832923,-480.0,0.00021917,2]
[385554793,1757893832932,-480.0,0.00021917,2]
[385554794,1757893832941,-480.0,0.00021917,2]
[385554795,1757893832951,-480.0,0.00021917,2]
[385554796,1757893832960,-547.24,0.00021917,2]
[385554797,1757893832970,-480.0,0.00021917,2]
[385554798,1757893832979,-480.0,0.00021917,2]
[385554799,1757893832989,-480.0,0.00021917,2]
[385554800,1757893833004,-1139.21,0.00021917,2]
[385554801,1757893833040,-480.0,0.00021917,2]
[385554802,1757893833065,-488.83,0.00021917,2]
[385554803,1757893833078,-480.0,0.00021917,2]
[385554804,1757893833089,-480.0,0.00021917,2]
[385554805,1757893833101,-480.0,0.00021917,2]
[385554806,1757893833111,-480.0,0.00021917,2]
[385554807,1757893833124,-480.0,0.00021917,2]
[385554808,1757893833136,-480.0,0.00021917,2]
[385554809,1757893833146,-480.0,0.00021917,2]
[385554810,1757893833155,-480.0,0.00021917,2]
[385554811,1757893833167,-4107.64,0.00021917,2]
[385554812,1757893833177,-808.68,0.00021917,2]
[385554813,1757893833186,-480.0,0.00021917,2]
[385554814,1757893833196,-202.0,0.00022,2]
[385554815,1757893833206,-233.1999649,0.00022014,2]
[385554816,1757893833216,-847.27885267,0.00022014,2]
[385554817,1757893833225,-160.0,0.00022014,2]
[385554818,1757893833235,-500.0,0.00022173,2]
[385554819,1757893833244,-500.0,0.00022173,2]
[385554820,1757893833254,-500.0,0.00022173,2]
[385554821,1757893833263,-480.0,0.0002219,2]
[385554822,1757893833273,-480.0,0.0002219,3]
[385554823,1757893833283,-480.0,0.0002219,3]
[385554824,1757893833292,-480.0,0.0002219,3]
[385554825,1757893833302,-480.0,0.0002219,3]
[385554826,1757893833311,-480.0,0.0002219,3]
[385554827,1757893833321,-505.34250469,0.0002219,3]
[385554828,1757893833332,-480.0,0.0002219,3]
[385554829,1757893833343,-590.24,0.0002219,3]
[385554830,1757893833352,-480.0,0.0002219,3]
[385554831,1757893833362,-584.83644283,0.0002219,3]
[385554832,1757893833372,-480.0,0.0002219,3]
[385554833,1757893833382,-480.0,0.0002219,3]
[385554834,1757893833391,-480.0,0.0002219,3]
[385554835,1757893833400,-480.0,0.0002219,3]
[385554836,1757893833410,-480.0,0.0002219,3]
[385554837,1757893833419,-480.0,0.0002219,3]
[385554838,1757893833429,-500.0,0.0002219,3]
[385554839,1757893833439,-480.0,0.0002219,3]
[385554840,1757893833448,-480.0,0.0002219,3]
[385554841,1757893833458,-480.0,0.0002219,3]
[385554842,1757893833468,-480.0,0.00022191,3]
[385554843,1757893833478,-480.0,0.00022191,3]
[385554844,1757893833487,-480.0,0.00022191,3]
[385554845,1757893833497,-480.0,0.00022191,3]
[385554846,1757893833507,-480.0,0.00022191,3]
[385554847,1757893833517,-480.0,0.00022191,3]
[385554848,1757893833527,-480.0,0.00022191,3]
[385554849,1757893833537,-480.0,0.00022191,3]
[385554850,1757893833547,-1300.33,0.00022191,3]
[385554851,1757893833556,-481.73,0.00022191,3]
[385554852,1757893833567,-480.0,0.00022191,3]
[385554853,1757893833576,-480.0,0.00022191,3]
[385554854,1757893833586,-480.0,0.00022191,3]
[385554855,1757893833597,-480.0,0.00022191,3]
[385554856,1757893833607,-480.0,0.00022191,3]
[385554857,1757893833617,-480.0,0.00022191,3]
[385554858,1757893833627,-480.0,0.00022191,3]
[385554859,1757893833637,-480.0,0.00022191,3]
[385554860,1757893833647,-684.7,0.00022191,3]
[385554861,1757893833656,-1145.7,0.00022191,3]
[385554862,1757893833666,-480.0,0.00022191,3]
[385554863,1757893833677,-480.0,0.00022191,3]
[385554864,1757893833688,-480.0,0.00022191,3]
[385554865,1757893833697,-837.62,0.00022191,3]
[385554866,1757893833707,-731.77,0.00022191,3]
[385554867,1757893833716,-480.0,0.00022191,3]
[385554868,1757893833726,-480.0,0.00022191,3]
[385554869,1757893833735,-480.0,0.00022191,3]
[385554870,1757893833744,-480.0,0.00022191,3]
[385554871,1757893833754,-541.8,0.00022191,3]
[385554872,1757893833764,-480.0,0.00022191,3]
[385554873,1757893833773,-4164.88,0.00022191,3]
[385554874,1757893833782,-480.0,0.00022191,3]
[385554875,1757893833792,-480.0,0.00022191,3]
[385554876,1757893833801,-480.0,0.00022191,3]
[385554877,1757893833811,-480.0,0.00022191,3]
[385554878,1757893833820,-480.0,0.00022191,3]
[385554879,1757893833830,-547.24,0.00022191,3]
[385554880,1757893833839,-480.0,0.00022191,3]
[385554881,1757893833850,-480.0,0.00022191,3]
[385554882,1757893833860,-480.0,0.00022191,3]
[385554883,1757893833869,-1139.21,0.00022191,3]
[385554884,1757893833879,-480.0,0.00022191,3]
[385554885,1757893833892,-488.83,0.00022191,3]
[385554886,1757893833903,-480.0,0.00022191,3]
[385554887,1757893833913,-480.0,0.00022191,3]
[385554888,1757893833922,-480.0,0.00022191,3]
[385554889,1757893833931,-480.0,0.00022191,3]
[385554890,1757893833940,-480.0,0.00022191,3]
[385554891,1757893833950,-480.0,0.00022191,3]
[385554892,1757893833959,-360.29770667,0.00022191,3]
[385554893,1757893833968,-4107.64,0.00022191,3]
[385554894,1757893833977,-808.68,0.00022191,3]
[385554895,1757893833986,-500.0,0.00022353,2]
[385554896,1757893833995,-500.0,0.00022353,2]
[385554897,1757893834004,-500.0,0.00022353,2]
[385554898,1757893834014,-402.07234269,0.00022353,2]
[385554899,1757893834023,-300.0,0.00022354,20]
[385554900,1757893834032,-300.0,0.00022354,20]
[385554901,1757893834042,-300.0,0.00022354,20]
[385554902,1757893834051,-300.0,0.00022354,20]
[385554903,1757893834060,-300.0,0.00022354,20]
[385554904,1757893834070,-300.0,0.00022354,20]
[385554905,1757893834079,-300.0,0.00022354,20]
[385554906,1757893834089,-300.0,0.00022354,20]
[385554907,1757893834099,-300.0,0.00022354,20]
[385554908,1757893834108,-300.0,0.00022354,20]
[385554909,1757893834117,-300.0,0.00022354,20]
[385554910,1757893834127,-300.0,0.00022354,20]
[385554911,1757893834140,-300.0,0.00022354,20]
[385554912,1757893834149,-300.0,0.00022354,20]
[385554913,1757893834159,-300.0,0.00022354,20]
[385554914,1757893834168,-404.99203872,0.00022365,2]
[385554915,1757893834178,-850.8,0.00022455,10]
[385554916,1757893834187,-193.11,0.00022464,3]
[385554917,1757893834196,-342.3,0.00022464,3]
[385554918,1757893834205,-480.0,0.00022464,3]
[385554919,1757893834215,-480.0,0.00022464,3]
[385554920,1757893834224,-480.0,0.00022464,3]
[385554921,1757893834233,-480.0,0.00022464,3]
[385554922,1757893834242,-480.0,0.00022464,3]
[385554923,1757893834251,-480.0,0.00022464,3]
[385554924,1757893834260,-480.0,0.00022464,3]
[385554925,1757893834270,-480.0,0.00022464,3]
[385554926,1757893834279,-199.62212359,0.00022465,3]
[385554927,1757893834288,-360.4264826,0.00022465,3]
[385554928,1757893834298,-480.0,0.00022465,3]
[385554929,1757893834307,-480.0,0.00022465,3]
[385554930,1757893834317,-540.0,0.00022465,3]
[385554931,1757893834326,-480.0,0.00022465,3]
[385554932,1757893834336,-480.0,0.00022465,3]
[385554933,1757893834345,-573.73117389,0.00022465,3]
[385554934,1757893834354,-889.83586818,0.00022465,3]
[385554935,1757893834368,-410.49413182,0.00022465,3]
[385554936,1757893834377,-69.69250963,0.00022465,3]
[385554944,1757893839103,-1137.79,0.00021917,2]
[385554945,1757893839112,-480.0,0.00021917,2]
[385554946,1757893839122,-1137.79,0.00022191,3]
[385554947,1757893839136,-480.0,0.00022191,3]
[385554948,1757893839146,-412.03749037,0.00022465,3]
[385554949,1757893839155,-480.0,0.00022465,3]
[385554950,1757893839164,-480.0,0.00022465,3]
[385554951,1757893839175,-480.0,0.00022465,3]
[385554952,1757893839185,-480.0,0.00022465,3]
[385554953,1757893839194,-480.0,0.00022465,3]
[385554954,1757893839205,-480.0,0.00022465,3]
[385554955,1757893839214,-684.7,0.00022465,3]
[385554956,1757893839223,-48.18838617,0.00022465,3]
[385554958,1757893839239,-638.55,0.00022465,3]
[385554959,1757893839250,-458.96161383,0.00022465,3]
[385554961,1757893839259,-480.0,0.00022465,3]
[385554963,1757893839269,-365.20474725,0.00022465,3]
[385554964,1757893839325,-114.79525275,0.00022465,3]
[385554965,1757893839334,-190.84191117,0.00022465,3]
[385554966,1757893839346,-289.15808883,0.00022465,3]
[385554967,1757893839356,-837.62,0.00022465,3]
[385554968,1757893839365,-731.77,0.00022465,3]
[385554969,1757893839374,-480.0,0.00022465,3]
[385554970,1757893839383,-480.0,0.00022465,3]
[385554971,1757893839393,-480.0,0.00022465,3]
[385554972,1757893839402,-480.0,0.00022465,3]
[385554973,1757893839411,-541.8,0.00022465,3]
[385554974,1757893839419,-467.48833325,0.00022465,3]
[385554975,1757893839430,-12.51166675,0.00022465,3]
[385554976,1757893839555,-2181.95647,0.00022465,3]
[385554977,1757893839594,-275.08437776,0.00022465,3]
[385554978,1757893839606,-1707.83915224,0.00022465,3]
[385554979,1757893839616,-480.0,0.00022465,3]
[385554980,1757893839625,-480.0,0.00022465,3]
[385554981,1757893839635,-480.0,0.00022465,3]
[385554982,1757893839644,-480.0,0.00022465,3]
[385554983,1757893839654,-480.0,0.00022465,3]
[385554984,1757893839663,-547.24,0.00022465,3]
[385554985,1757893839673,-480.0,0.00022465,3]
[385554986,1757893839682,-480.0,0.00022465,3]
[385554987,1757893839691,-480.0,0.00022465,3]
[385554988,1757893839700,-1139.21,0.00022465,3]
[385554989,1757893839710,-480.0,0.00022465,3]
[385554990,1757893839719,-488.83,0.00022465,3]
[385554991,1757893839728,-480.0,0.00022465,3]
[385554992,1757893839738,-480.0,0.00022465,3]
[385554993,1757893839747,-480.0,0.00022465,3]
[385554994,1757893839757,-480.0,0.00022465,3]
[385554995,1757893839766,-480.0,0.00022465,3]
[385554996,1757893839775,-480.0,0.00022465,3]
[385554997,1757893839784,-4107.64,0.00022465,3]
[385554998,1757893839793,-808.68,0.00022465,3]
[385554999,1757893839802,-1137.79,0.00022465,3]
[385555000,1757893839811,-480.0,0.00022465,3]
[385555001,1757893839827,-243.148,0.00022664,2]
[385555002,1757893839837,-174.62050923,0.00022664,2]
[385555003,1757893839846,-151.0,0.00022682,2]
[385555004,1757893839858,-1000.0,0.00022721,2]
[385555005,1757893839868,-1000.0,0.00022721,2]
[385555006,1757893839877,-1000.0,0.00022721,2]
[385555007,1757893839887,-311.62460643,0.00022736,2]
[385555008,1757893839896,-500.0,0.00022736,2]
[385555009,1757893839905,-480.0,0.00022738,3]
[385555010,1757893839914,-480.0,0.00022738,3]
[385555011,1757893839923,-480.0,0.00022738,3]
[385555012,1757893839932,-480.0,0.00022738,3]
[385555013,1757893839941,-480.0,0.00022738,3]
[385555014,1757893839950,-480.0,0.00022738,3]
[385555015,1757893839959,-480.0,0.00022738,3]
[385555016,1757893839968,-306.90856497,0.00022739,2]
[385555017,1757893839978,-480.0,0.00022739,3]
[385555018,1757893839987,-480.0,0.00022739,3]
[385555019,1757893839996,-480.0,0.00022739,3]
[385555020,1757893840005,-480.0,0.00022739,3]
[385555021,1757893840015,-481.73,0.00022739,3]
[385555022,1757893840024,-480.0,0.00022739,3]
[385555024,1757893840033,-480.0,0.00022739,3]
[385555025,1757893840042,-480.0,0.00022739,3]
[385555026,1757893840051,-480.0,0.00022739,3]
[385555027,1757893840060,-480.0,0.00022739,3]
[385555029,1757893840069,-480.0,0.00022739,3]
[385555030,1757893840079,-684.7,0.00022739,3]
[385555032,1757893840088,-1145.7,0.00022739,3]
[385555034,1757893840097,-480.0,0.00022739,3]
[385555036,1757893840109,-480.0,0.00022739,3]
[385555038,1757893840118,-480.0,0.00022739,3]
[385555040,1757893840128,-837.62,0.00022739,3]
[385555042,1757893840141,-731.77,0.00022739,3]
[385555044,1757893840151,-480.0,0.00022739,3]
[385555046,1757893840161,-480.0,0.00022739,3]
[385555048,1757893840171,-480.0,0.00022739,3]
[385555050,1757893840181,-480.0,0.00022739,3]
[385555052,1757893840190,-541.8,0.00022739,3]
[385555054,1757893840199,-480.0,0.00022739,3]
[385555056,1757893840208,-4164.88,0.00022739,3]
[385555058,1757893840217,-480.0,0.00022739,3]
[385555059,1757893840226,-603.50109133,0.00022739,3]
[385555060,1757893840236,-480.0,0.00022739,3]
[385555061,1757893840245,-480.0,0.00022739,3]
[385555062,1757893840254,-480.0,0.00022739,3]
[385555063,1757893840263,-547.24,0.00022739,3]
[385555064,1757893840272,-480.0,0.00022739,3]
[385555065,1757893840281,-480.0,0.00022739,3]
[385555066,1757893840290,-480.0,0.00022739,3]
[385555067,1757893840300,-1139.21,0.00022739,3]
[385555068,1757893840309,-480.0,0.00022739,3]
[385555069,1757893840318,-488.83,0.00022739,3]
[385555070,1757893840327,-480.0,0.00022739,3]
[385555071,1757893840336,-480.0,0.00022739,3]
[385555072,1757893840346,-480.0,0.00022739,3]
[385555073,1757893840357,-609.00374922,0.00022739,3]
[385555075,1757893840366,-480.0,0.00022739,3]
[385555076,1757893840375,-480.0,0.00022739,3]
[385555078,1757893840384,-4107.64,0.00022739,3]
[385555080,1757893840394,-808.68,0.00022739,3]
[385555082,1757893840403,-1137.79,0.00022739,3]
[385555084,1757893840412,-480.0,0.00022739,3]
[385555086,1757893840421,-500.0,0.00022749,2]
[385555088,1757893840431,-500.0,0.00022773,2]
[385555090,1757893840440,-976.0,0.00022844,2]
[385555092,1757893840449,-409.0,0.00022844,2]
[385555094,1757893840458,-410.748,0.00022844,2]
[385555096,1757893840467,-634.0,0.00022844,2]
[385555098,1757893840476,-2156.0,0.00022844,2]
[385555100,1757893840486,-2695.0,0.00022844,2]
[385555102,1757893840494,-1001.24484371,0.000229,2]
[385555104,1757893840503,-163.55172474,0.00022904,3]
[385555106,1757893840513,-404.99203869,0.00022911,2]
[385555108,1757893840522,-151.0,0.00022935,3]
[385555110,1757893840531,-2603.3380711,0.00022974,2]
[385555112,1757893840541,-847.27885267,0.00023,3]
[385555115,1757893840550,-217.77739939,0.00023,3]
[385555117,1757893840559,-299.21281441,0.00023012,2]
[385555120,1757893840568,-480.0,0.00023012,3]
[385555122,1757893840577,-471.96244384,0.00023012,3]
[385555141,1757893840746,-8.03755616,0.00023012,3]
[385555143,1757893840755,-187.23323988,0.00023012,2]
[385555144,1757893840764,-191.8963625,0.00023012,2]
[385555146,1757893840774,-500.0,0.00023012,2]
[385555148,1757893840783,-500.0,0.00023012,2]
[385555150,1757893840792,-500.0,0.00023012,2]
[385555152,1757893840801,-500.0,0.00023012,2]
[385555153,1757893840811,-500.0,0.00023012,2]
[385555154,1757893840820,-637.37262688,0.00023012,2]
[385555155,1757893840829,-480.0,0.00023012,3]
[385555157,1757893840838,-480.0,0.00023012,3]
[385555159,1757893840847,-480.0,0.00023012,3]
[385555160,1757893840860,-480.0,0.00023012,3]
[385555161,1757893840871,-480.0,0.00023012,3]
[385555162,1757893840881,-480.0,0.00023013,3]
[385555163,1757893840890,-480.0,0.00023013,3]
[385555165,1757893840900,-480.0,0.00023013,3]
[385555167,1757893840910,-480.0,0.00023013,3]
[385555170,1757893840919,-481.73,0.00023013,3]
[385555173,1757893840928,-14.81090563,0.00023013,3]
[385555192,1757893843609,-480.0,0.00021917,2]
[385555194,1757893843619,-480.0,0.00022191,3]
[385555195,1757893843629,-150.0,0.00022844,2]
[385555196,1757893843639,-1547.33170382,0.00023,2]
[385555197,1757893843648,-465.18909437,0.00023013,3]
[385555198,1757893843657,-480.0,0.00023013,3]
[385555199,1757893843667,-480.0,0.00023013,3]
[385555200,1757893843676,-480.0,0.00023013,3]
[385555201,1757893843685,-480.0,0.00023013,3]
[385555202,1757893843694,-480.0,0.00023013,3]
[385555203,1757893843704,-684.7,0.00023013,3]
[385555204,1757893843713,-1145.7,0.00023013,3]
[385555205,1757893843722,-480.0,0.00023013,3]
[385555206,1757893843731,-480.0,0.00023013,3]
[385555207,1757893843740,-480.0,0.00023013,3]
[385555208,1757893843750,-837.62,0.00023013,3]
[385555209,1757893843759,-731.77,0.00023013,3]
[385555210,1757893843768,-480.0,0.00023013,3]
[385555211,1757893843778,-480.0,0.00023013,3]
[385555212,1757893843787,-480.0,0.00023013,3]
[385555213,1757893843797,-541.8,0.00023013,3]
[385555214,1757893843806,-480.0,0.00023013,3]
[385555215,1757893843815,-4164.88,0.00023013,3]
[385555216,1757893843824,-480.0,0.00023013,3]
[385555217,1757893843834,-480.0,0.00023013,3]
[385555218,1757893843844,-480.0,0.00023013,3]
[385555219,1757893843853,-284.76787094,0.00023013,3]
[385555220,1757893843865,-195.23212906,0.00023013,3]
[385555221,1757893843873,-547.24,0.00023013,3]
[385555222,1757893843883,-278.66886309,0.00023013,3]
[385555223,1757893843894,-201.33113691,0.00023013,3]
[385555224,1757893843903,-341.68877246,0.00023013,3]
[385555243,1757893846679,-300.0,0.0002224,2]
[385555244,1757893846689,-480.0,0.00022465,3]
[385555245,1757893846698,-480.0,0.00022739,3]
[385555246,1757893846707,-138.31122754,0.00023013,3]
[385555247,1757893846716,-480.0,0.00023013,3]
[385555248,1757893846726,-1139.21,0.00023013,3]
[385555249,1757893846735,-480.0,0.00023013,3]
[385555250,1757893846744,-460.64998882,0.00023013,3]
[385555251,1757893846755,-28.18001118,0.00023013,3]
[385555252,1757893846764,-480.0,0.00023013,3]
[385555253,1757893846774,-480.0,0.00023013,3]
[385555254,1757893846784,-480.0,0.00023013,3]
[385555255,1757893846793,-480.0,0.00023013,3]
[385555256,1757893846802,-480.0,0.00023013,3]
[385555257,1757893846814,-2057.15982332,0.00023013,3]
[385555263,1757893934123,5000.0,0.0002015,2]
[385555264,1757893957525,930.296672,0.0002015,2]
[385555266,1757894059831,300.0,0.0002015,2]
[385555271,1757894224319,2000.0,0.00030298,90]
[385555307,1757895001404,2202.53965735,0.0002015,2]
[385555308,1757895001428,2797.46034265,0.0002015,2]
[385555309,1757895024087,5000.0,0.0002015,2]
[385555348,1757895032816,-1796.78135078,0.00020428,2]
[385555350,1757895032828,-903.21864922,0.00020428,2]
[385555352,1757895032837,-1570.36114296,0.00020634,2]
[385555354,1757895032847,-167.72585857,0.0002072,2]
[385555356,1757895032856,-1000.0,0.0002082,2]
[385555358,1757895032866,-2119.2443824,0.00020833,2]
[385555361,1757895032877,-251.19981302,0.00021259,2]
[385555363,1757895032887,-1200.0,0.00021457,2]
[385555366,1757895032896,-840.40265909,0.00021458,2]
[385555370,1757895032904,-1040.53806389,0.00021813,2]
[385555373,1757895032913,-300.0,0.00021816,2]
[385555376,1757895032922,-300.0,0.00021816,2]
[385555379,1757895032932,-300.0,0.00021816,2]
[385555382,1757895032941,-300.0,0.00021816,2]
[385555385,1757895032950,-167.72585856,0.00021817,2]
[385555388,1757895032961,-242.99522323,0.00021817,2]
[385555390,1757895032970,-1200.0,0.00021911,2]
[385555392,1757895032979,-500.0,0.00021911,2]
[385555394,1757895032988,-500.0,0.00021911,2]
[385555396,1757895032997,-500.0,0.00021911,2]
[385555398,1757895033006,-500.0,0.00021911,2]
[385555400,1757895033015,-500.0,0.00021911,2]
[385555402,1757895033024,-500.0,0.00021911,2]
[385555404,1757895033033,-500.0,0.00021911,2]
[385555406,1757895033043,-500.0,0.00021911,2]
[385555408,1757895033052,-500.0,0.00021911,2]
[385555410,1757895033062,-500.0,0.00021911,2]
[385555412,1757895033071,-500.0,0.00021911,2]
[385555414,1757895033081,-500.0,0.00021911,2]
[385555416,1757895033090,-539.97757753,0.00021911,2]
[385555418,1757895033099,-611.27844298,0.00021911,2]
[385555420,1757895033109,-500.0,0.00021911,2]
[385555422,1757895033119,-500.0,0.00021911,2]
[385555424,1757895033128,-500.0,0.00021911,2]
[385555426,1757895033138,-500.0,0.00021911,2]
[385555428,1757895033147,-500.0,0.00021911,2]
[385555430,1757895033157,-500.0,0.00021911,2]
[385555432,1757895033166,-500.0,0.00021911,2]
[385555433,1757895033175,-500.0,0.00021911,2]
[385555435,1757895033184,-500.0,0.00021911,2]
[385555437,1757895033194,-500.0,0.00021911,2]
[385555439,1757895033203,-500.0,0.00021911,2]
[385555441,1757895033212,-353.64318358,0.00021911,2]
[385555443,1757895033221,-500.0,0.00021911,2]
[385555445,1757895033230,-500.0,0.00021911,2]
[385555447,1757895033241,-500.0,0.00021911,2]
[385555449,1757895033250,-500.0,0.00021911,2]
[385555451,1757895033259,-500.0,0.00021911,2]
[385555452,1757895033268,-500.0,0.00021911,2]
[385555453,1757895033277,-500.0,0.00021911,2]
[385555454,1757895033286,-500.0,0.00021911,2]
[385555455,1757895033296,-500.0,0.00021911,2]
[385555456,1757895033305,-500.0,0.00021911,2]
[385555457,1757895033315,-500.0,0.00021911,2]
[385555458,1757895033324,-500.0,0.00021911,2]
[385555459,1757895033333,-500.0,0.00021911,2]
[385555460,1757895033343,-500.0,0.00021911,2]
[385555461,1757895033352,-500.0,0.00021911,2]
[385555462,1757895033362,-500.0,0.00021911,2]
[385555463,1757895033375,-500.0,0.00021911,2]
[385555465,1757895033384,-500.0,0.00021911,2]
[385555466,1757895033393,-324.25061527,0.00021911,2]
[385555467,1757895033403,-171.10861972,0.00021911,2]
[385555468,1757895033412,-139.49089727,0.00021911,2]
[385555469,1757895033424,-360.50910273,0.00021911,2]
[385555470,1757895033433,-500.0,0.00021911,2]
[385555471,1757895033443,-48970.42169309,0.00021912,2]
[385555472,1757895033454,-440.0,0.00021912,2]
[385555532,1757895039158,-500.0,0.00021916,2]
[385555533,1757895039168,-193.13693475,0.00021916,2]
[385555534,1757895039180,-306.86306525,0.00021916,2]
[385555535,1757895039189,-500.0,0.00021916,2]
[385555536,1757895039198,-500.0,0.00021916,2]
[385555537,1757895039207,-500.0,0.00021916,2]
[385555538,1757895039216,-500.0,0.00021916,2]
[385555539,1757895039226,-500.0,0.00021916,2]
[385555540,1757895039235,-266.75927775,0.00021916,2]
[385555541,1757895039246,-233.24072225,0.00021916,2]
[385555542,1757895039255,-500.0,0.00021916,2]
[385555543,1757895039264,-500.0,0.00021916,2]
[385555544,1757895039417,-500.0,0.00021916,2]
[385555545,1757895039427,-500.0,0.00021916,2]
[385555546,1757895039436,-500.0,0.00021916,2]
[385555547,1757895039445,-500.0,0.00021916,2]
[385555548,1757895039454,-500.0,0.00021916,2]
[385555549,1757895039464,-555.42369615,0.00021916,2]
[385555550,1757895039473,-500.0,0.00021917,2]
[385555551,1757895039482,-480.0,0.00021917,2]
[385555552,1757895039491,-317.48729012,0.00021917,2]
[385555553,1757895039500,-374.38958948,0.00021917,2]
[385555554,1757895039510,-480.0,0.00021917,2]
[385555555,1757895039519,-480.0,0.00021917,2]
[385555556,1757895039529,-480.0,0.00021917,2]
[385555557,1757895039538,-480.0,0.00021917,2]
[385555558,1757895039548,-505.67968309,0.00021917,2]
[385555559,1757895039557,-480.0,0.00021917,2]
[385555560,1757895039566,-480.0,0.00021917,2]
[385555561,1757895039576,-480.0,0.00021917,2]
[385555562,1757895039586,-480.0,0.00021917,2]
[385555563,1757895039595,-480.0,0.00021917,2]